bitfinex/quotes_ETHUSD_20250508
["timestamp","ask_amount","ask_price","bid_price","bid_amount"]
[1746716821481,4.9959043,2001.7,2001.3,0.05014793]
[1746716821687,4.99597394,2001.7,2001.3,0.05014793]
[1746716821925,13.3156275,2002.0,2001.0,0.05014793]
[1746716821926,4.99661737,2001.4,2001.0,0.05014793]
[1746716822130,0.7664,2002.0,2001.1,4.99709382]
[1746716822131,6.851,2001.5,2001.1,4.99709382]
[1746716822287,6.851,2001.6,2001.1,4.99725151]
[1746716822482,6.851,2001.6,2001.0,5.04752523]
[1746716822687,6.851,2001.6,2001.3,4.99660976]
[1746716822887,6.851,2001.6,2001.2,0.05014793]
[1746716823122,6.851,2001.6,2001.4,4.99638435]
[1746716823309,6.851,2001.6,2001.4,4.99632368]
[1746716823628,0.4387049,2002.2,2001.9,4.99503908]
[1746716823927,0.4387049,2002.2,2002.1,0.05014793]
[1746716824156,4.9949299,2002.1,2001.6,0.05014793]
[1746716824339,0.4387049,2002.2,2001.7,4.99555986]
[1746716824546,0.4387049,2002.2,2002.1,5.04490343]
[1746716824921,0.4387049,2002.2,2002.1,0.05014793]
[1746716825234,0.4387049,2002.2,2002.1,5.04490343]
[1746716825640,0.4387049,2002.2,2002.1,5.0948449]
[1746716825855,0.4387049,2002.2,2002.1,0.05014793]
[1746716826415,5.43321094,2002.2,2002.1,0.05014793]
[1746716826656,0.4387049,2002.2,2002.1,0.05014793]
[1746716827030,5.43321094,2002.2,2001.7,0.05014793]
[1746716827220,0.4387049,2002.2,2001.7,0.05014793]
[1746716827553,0.4387049,2002.2,2002.1,4.9947555]
[1746716827945,0.4387049,2002.2,2002.1,5.04490343]
[1746716828259,0.4387049,2002.2,2002.1,16.23990343]
[1746716828553,0.4387049,2002.2,2002.1,8.84190343]
[1746716828759,0.4387049,2002.2,2002.1,0.84714793]
[1746716829122,0.4387049,2002.2,2002.1,8.89184796]
[1746716829433,0.4387049,2002.2,2002.1,9.4760413]
[1746716830041,0.4387049,2002.2,2002.1,9.42609677]
[1746716830275,0.4387049,2002.2,2002.1,10.02603116]
[1746716830435,0.4387049,2002.2,2002.1,9.97609677]
[1746716830649,0.4387049,2002.2,2002.1,9.42609677]
[1746716831565,0.4387049,2002.2,2002.1,8.84190343]
[1746716831737,0.4387049,2002.2,2002.1,5.84190343]
[1746716832649,0.4387049,2002.2,2002.1,5.89184269]
[1746716832829,0.4387049,2002.2,2002.1,8.84190343]
[1746716833271,0.4387049,2002.2,2002.1,8.85025316]
[1746716833440,0.4387049,2002.2,2002.1,10.73430048]
[1746716833623,0.4387049,2002.2,2002.1,10.68436794]
[1746716833823,0.4387049,2002.2,2002.1,8.80032062]
[1746716834427,5.43332471,2002.2,2001.8,0.7547]
[1746716834722,0.4387049,2002.2,2002.1,5.00332062]
[1746716834931,0.4387049,2002.2,2002.1,5.76442062]
[1746716835754,0.4387049,2002.2,2002.1,5.00332062]
[1746716836334,0.4387049,2002.2,2002.1,6.5834607]
[1746716836737,0.4387049,2002.2,2002.1,10.40410235]
[1746716836950,0.4387049,2002.2,2002.1,10.3541607]
[1746716837175,0.4387049,2002.2,2002.1,5.00332062]
[1746716837376,0.4387049,2002.2,2001.7,0.00856512]
[1746716837563,0.4387049,2002.2,2001.9,9.9902986]
[1746716837869,4.55400133,2002.6,2001.9,9.9902986]
[1746716837870,4.55400133,2003.0,2002.3,0.00856512]
[1746716838168,4.99319135,2002.8,2002.3,0.00856512]
[1746716838469,4.99319135,2002.8,2002.3,5.0026858]
[1746716838670,4.99392402,2002.5,2002.3,0.00856512]
[1746716838875,4.99359654,2002.6,2002.3,0.00856512]
[1746716839032,4.99311969,2002.8,2002.3,0.50886833]
[1746716839376,6.812,2002.9,2002.6,5.00187454]
[1746716839867,4.9932591,2002.7,2002.6,0.00856512]
[1746716840042,11.80485053,2002.9,2002.6,0.00856512]
[1746716840239,11.80485053,2002.9,2002.5,4.99366681]
[1746716840240,6.812,2002.9,2002.5,0.00856512]
[1746716840453,4.99350843,2002.6,2002.5,0.00856512]
[1746716840655,0.7941,2002.6,2002.0,0.00856512]
[1746716840855,4.99402919,2002.4,2002.0,9.99824862]
[1746716841072,5.78773879,2002.6,2002.1,4.99459299]
[1746716841367,4.99389889,2002.5,2002.1,0.00856512]
[1746716841569,4.99410685,2002.4,2002.0,0.00856512]
[1746716841734,4.99392396,2002.5,2002.0,0.00856512]
[1746716841932,4.99414673,2002.4,2002.0,0.00856512]
[1746716842370,4.9947555,2002.1,2002.0,0.00856512]
[1746716842674,4.9947555,2002.1,2001.7,7.99566145]
[1746716842675,6.811,2002.3,2001.8,0.00856512]
[1746716842870,4.99504618,2002.0,2001.8,0.00856512]
[1746716843071,4.99504618,2002.0,2001.7,0.00856512]
[1746716843072,4.9950972,2002.0,2001.7,0.00856512]
[1746716843374,4.99540936,2001.9,2001.7,0.00856512]
[1746716843573,4.99487638,2002.1,2001.7,5.00422691]
[1746716843872,4.99530012,2001.9,2001.8,0.00856512]
[1746716844037,4.99479541,2002.1,2001.5,0.00856512]
[1746716844236,4.99565153,2001.8,2001.5,0.00856512]
[1746716844477,4.99583062,2001.7,2001.5,0.00856512]
[1746716844775,4.99625281,2001.5,2001.4,0.00856512]
[1746716844980,5.79438604,2001.7,2001.4,0.00856512]
[1746716845143,0.7985,2001.7,2001.4,5.51057765]
[1746716845474,4.9952545,2001.9,2001.8,0.00856512]
[1746716845775,0.7831,2002.1,2001.5,0.00856512]
[1746716845983,4.99465718,2002.2,2001.8,0.00856512]
[1746716846147,6.811,2002.3,2002.0,0.00856512]
[1746716846473,4.9947555,2002.1,2002.0,0.00856512]
[1746716846683,4.99557272,2001.8,2001.5,0.00856512]
[1746716846886,5.5447555,2002.1,2001.5,0.00856512]
[1746716846887,4.99600319,2001.6,2001.5,0.00856512]
[1746716847385,6.812,2001.8,2001.3,4.99655787]
[1746716847556,11.80758827,2001.8,2001.4,5.49691769]
[1746716847878,4.99625281,2001.5,2001.2,0.00856512]
[1746716848082,4.99616619,2001.6,2001.2,0.05852915]
[1746716848285,4.99587372,2001.7,2001.3,4.99675044]
[1746716848645,11.80755307,2001.8,2001.4,5.04644316]
[1746716849148,6.812,2001.8,2001.6,0.00856512]
[1746716849984,11.80754674,2001.8,2001.6,0.00856512]
[1746716850314,4.9957536,2001.7,2001.6,0.00856512]
[1746716850485,11.80754674,2001.8,2001.5,0.00856512]
[1746716850486,11.80761505,2001.8,2001.5,0.00856512]
[1746716850687,6.812,2001.8,2001.5,5.58870811]
[1746716850885,6.812,2001.8,2001.7,0.00856512]
[1746716851385,4.99637823,2001.5,2001.3,0.00856512]
[1746716851682,4.99620207,2001.6,2001.3,5.0053105]
[1746716851885,4.99603011,2001.6,2001.3,1.09166902]
[1746716852093,4.99606818,2001.6,2001.3,1.09166902]
[1746716852381,0.766,2001.7,2001.2,5.00556248]
[1746716852586,4.9961321,2001.6,2001.2,5.00556248]
[1746716852771,4.99626836,2001.5,2001.2,0.00856512]
[1746716853182,0.766,2001.7,2001.2,0.00856512]
[1746716853183,0.766,2001.7,2001.2,5.00540995]
[1746716853357,4.99650244,2001.4,2001.3,0.58340757]
[1746716853549,5.76194789,2001.7,2001.4,0.00856512]
[1746716853752,4.99602503,2001.6,2001.4,0.00856512]
[1746716854494,0.766,2001.7,2001.2,0.00856512]
[1746716854495,4.99625281,2001.5,2001.2,0.00856512]
[1746716855492,4.99659595,2001.4,2001.2,0.00856512]
[1746716855687,12.57476077,2001.7,2001.2,0.00856512]
[1746716855688,7.579,2001.7,2001.2,0.00856512]
[1746716855887,7.579,2001.7,2001.1,0.00856512]
[1746716855888,4.99642174,2001.5,2001.1,0.00856512]
[1746716856061,4.99615864,2001.6,2001.2,4.99699506]
[1746716856261,9.99239912,2001.6,2001.2,4.99681656]
[1746716856567,4.99600319,2001.6,2001.2,9.99371397]
[1746716856886,4.99533996,2001.9,2001.6,0.00856512]
[1746716857089,6.813,2002.0,2001.8,4.99537624]
[1746716857402,4.99459944,2002.2,2001.9,0.50810274]
[1746716857592,6.813,2002.4,2001.9,0.00856512]
[1746716857809,6.813,2002.4,2002.1,0.00856512]
[1746716858107,4.99360201,2002.6,2002.2,4.99449703]
[1746716858310,4.99388579,2002.5,2002.1,5.00328787]
[1746716858610,17.999,2002.7,2002.2,0.00856512]
[1746716858906,4.99412703,2002.4,2002.0,5.00353622]
[1746716859202,4.99391453,2002.5,2002.1,4.99474076]
[1746716859410,3.0,2002.6,2002.0,0.00856512]
[1746716859705,4.9947555,2002.1,2002.0,0.00856512]
[1746716860007,4.99462382,2002.2,2002.0,0.00856512]
[1746716860327,4.99450604,2002.2,2002.1,0.00856512]
[1746716860974,4.99435897,2002.3,2002.1,0.00856512]
[1746716861311,4.99439222,2002.3,2002.1,0.00856512]
[1746716861512,11.80709597,2002.4,2002.0,5.00349571]
[1746716861735,11.80702081,2002.4,2002.0,5.81554498]
[1746716861891,6.813,2002.4,2002.1,0.81664532]
[1746716862096,6.813,2002.4,2002.0,0.82067033]
[1746716862097,11.80714731,2002.4,2002.0,0.00856512]
[1746716862292,4.99485853,2002.1,2001.9,0.00856512]
[1746716862596,4.99520411,2002.0,2001.7,0.00856512]
[1746716862797,9.99043218,2002.0,2001.7,0.00856512]
[1746716863029,4.99509819,2002.0,2001.7,0.00856512]
[1746716863200,4.99457537,2002.2,2001.7,5.58132055]
[1746716863530,4.99475685,2002.1,2001.7,0.00856512]
[1746716863705,4.99506053,2002.0,2001.7,0.00856512]
[1746716863891,11.80700819,2002.4,2001.9,4.9952512]
[1746716863892,4.99438546,2002.3,2001.9,4.9952512]
[1746716864092,4.9947555,2002.1,2002.0,0.00856512]
[1746716864531,4.99489227,2002.1,2001.7,5.00413042]
[1746716864835,4.99520723,2002.0,2001.7,0.00856512]
[1746716865030,7.99431679,2002.3,2001.9,0.00856512]
[1746716865031,4.99450604,2002.2,2001.9,0.00856512]
[1746716865349,4.99477032,2002.1,2001.9,0.00856512]
[1746716865723,4.99463845,2002.2,2001.9,0.64141392]
[1746716866036,4.99462837,2002.2,2001.9,0.64141167]
[1746716866336,6.813,2002.4,2001.9,0.64141167]
[1746716866337,4.99428831,2002.3,2001.9,5.6366622]
[1746716866490,4.99428831,2002.3,2001.9,0.64141167]
[1746716866690,0.8231,2002.6,2001.9,0.64141167]
[1746716866936,17.999,2002.7,2002.4,5.0024872]
[1746716867093,4.99312784,2002.8,2002.4,5.05242206]
[1746716867299,4.99303272,2002.8,2002.4,0.00856512]
[1746716867735,12.56391223,2002.9,2002.4,5.0025704]
[1746716867936,4.99315468,2002.8,2002.4,5.0025704]
[1746716868124,6.812,2002.9,2002.5,4.99363424]
[1746716868296,0.7715,2003.5,2002.9,0.00856512]
[1746716868500,4.99227686,2003.1,2002.9,0.00856512]
[1746716868695,4.99227686,2003.1,2002.4,4.08277944]
[1746716868696,4.99251123,2003.0,2002.6,0.00856512]
[1746716868909,4.99259858,2003.0,2002.6,5.00203315]
[1746716869142,9.98533387,2003.0,2002.6,0.00856512]
[1746716869439,6.783,2003.3,2002.6,0.05849527]
[1746716869609,4.99222117,2003.2,2002.7,4.99312041]
[1746716869812,4.99219012,2003.2,2002.7,4.9930595]
[1746716870008,4.99219314,2003.2,2002.7,4.9930595]
[1746716870204,4.99233095,2003.1,2002.9,0.00856512]
[1746716870449,4.99214578,2003.2,2002.9,0.00856512]
[1746716870607,11.77452571,2003.4,2002.6,0.00856512]
[1746716870608,6.783,2003.4,2002.6,0.00856512]
[1746716870801,4.99265235,2003.0,2002.6,0.00856512]
[1746716871150,4.99284937,2002.9,2002.6,0.00856512]
[1746716871742,4.55400133,2003.2,2002.6,0.00856512]
[1746716871912,4.99303889,2002.8,2002.6,0.00856512]
[1746716872118,4.99291951,2002.9,2002.6,0.00856512]
[1746716872332,4.99262996,2003.0,2002.6,0.00856512]
[1746716872528,4.99237242,2003.1,2002.8,0.00856512]
[1746716872732,4.99255094,2003.0,2002.8,0.00856512]
[1746716872935,4.99237242,2003.1,2002.8,0.00856512]
[1746716872936,4.99241734,2003.1,2002.8,0.00856512]
[1746716873104,4.99210698,2003.2,2002.8,0.00856512]
[1746716873313,4.9923638,2003.1,2002.8,0.00856512]
[1746716873511,4.99276034,2003.0,2002.8,0.00856512]
[1746716873709,4.99276049,2002.9,2002.8,0.00856512]
[1746716874244,4.99319253,2002.8,2002.6,0.00856512]
[1746716875122,4.9932591,2002.7,2002.6,0.00856512]
[1746716875633,4.99365498,2002.6,2002.3,0.00856512]
[1746716876034,11.77480235,2002.9,2002.3,0.00856512]
[1746716876035,4.99333528,2002.7,2002.3,0.05850562]
[1746716876238,4.99359819,2002.6,2002.3,0.58893972]
[1746716876434,4.99387123,2002.5,2002.3,0.00856512]
[1746716876944,4.99367265,2002.6,2002.2,0.00856512]
[1746716877251,4.9942566,2002.3,2002.2,0.00856512]
[1746716877942,4.99402901,2002.4,2001.9,0.00856512]
[1746716878150,4.99402901,2002.4,2001.7,3.24217873]
[1746716878151,5.7776545,2001.9,2001.8,0.00856512]
[1746716879446,7.5923,2002.3,2001.8,5.32889983]
[1746716879624,12.58671351,2002.3,2001.9,4.99519303]
[1746716879824,11.77641351,2002.3,2001.8,5.32898648]
[1746716880248,6.782,2002.3,2001.9,4.99505893]
[1746716880447,6.782,2002.3,2002.0,6.02723079]
[1746716880647,6.782,2002.3,2002.1,5.0031839]
[1746716880850,3.0,2002.7,2002.1,0.00856512]
[1746716880851,4.99403955,2002.4,2002.1,0.00856512]
[1746716881042,4.99462391,2002.2,2001.9,0.00856512]
[1746716881229,4.99414497,2002.4,2001.9,0.05851359]
[1746716881432,4.99414497,2002.4,2002.0,4.99492699]
[1746716881619,4.99352562,2002.6,2002.2,5.00293325]
[1746716881944,4.99386123,2002.5,2002.2,0.00856512]
[1746716882121,4.99366593,2002.6,2002.2,0.00856512]
[1746716882324,6.782,2002.7,2002.4,0.00856512]
[1746716882538,4.9935332,2002.6,2002.4,0.00856512]
[1746716882726,4.9937578,2002.5,2002.4,0.00856512]
[1746716883043,4.99450053,2002.3,2002.1,0.00856512]
[1746716883244,4.99416191,2002.4,2002.1,0.00856512]
[1746716883539,4.99436784,2002.3,2002.1,0.00856512]
[1746716883940,3.0,2002.6,2002.1,0.00856512]
[1746716884119,4.99426133,2002.3,2002.1,0.00856512]
[1746716884317,4.99366397,2002.6,2002.2,4.99438303]
[1746716884517,4.99366397,2002.6,2002.1,5.64639817]
[1746716884518,4.99386101,2002.5,2002.1,5.64639817]
[1746716884733,4.99411798,2002.4,2002.1,0.65177781]
[1746716884959,7.5923,2002.8,2002.2,4.99434974]
[1746716885111,7.5923,2002.8,2002.1,0.65177781]
[1746716885447,4.99393528,2002.5,2002.1,5.64638428]
[1746716885654,4.9932591,2002.7,2002.1,0.65177781]
[1746716885824,3.0,2002.7,2002.1,0.00856512]
[1746716886029,4.99449596,2002.3,2002.1,0.00856512]
[1746716886228,4.99450604,2002.2,2002.1,0.00856512]
[1746716886941,4.9952545,2001.9,2001.8,0.00856512]
[1746716887249,4.99510652,2002.0,2001.8,0.00856512]
[1746716887863,4.9952545,2001.9,2001.8,0.00856512]
[1746716888218,4.99575987,2001.7,2001.5,0.00856512]
[1746716888428,4.99559413,2001.8,2001.5,0.00856512]
[1746716888626,4.99534813,2001.9,2001.5,0.59108414]
[1746716888919,4.9948573,2002.1,2001.8,0.00856512]
[1746716889120,4.99488681,2002.1,2001.7,4.9955441]
[1746716889756,4.99541314,2001.9,2001.6,0.00856512]
[1746716890143,4.99510688,2002.0,2001.6,6.18972867]
[1746716890534,11.77659132,2002.2,2001.8,0.00856512]
[1746716890758,11.77659132,2002.2,2001.9,0.8125]
[1746716890926,16.77134143,2002.2,2001.9,0.8125]
[1746716891255,6.782,2002.2,2002.0,0.00856512]
[1746716891853,16.903,2002.6,2002.2,0.00856512]
[1746716892021,16.903,2002.6,2002.3,4.99424551]
[1746716892225,21.89673426,2002.6,2002.2,0.00856512]
[1746716892465,4.99386306,2002.5,2002.2,0.00856512]
[1746716892651,16.903,2002.6,2002.2,5.99412948]
[1746716892971,4.99289833,2002.9,2002.5,5.00232292]
[1746716893151,17.6786,2003.1,2002.8,4.99283042]
[1746716893152,16.903,2003.1,2002.8,4.99283042]
[1746716893352,16.903,2003.1,2002.5,5.05225423]
[1746716893353,4.9929177,2002.9,2002.5,0.00856512]
[1746716893541,4.99294558,2002.9,2002.5,0.00856512]
[1746716893743,4.99339529,2002.7,2002.5,0.00856512]
[1746716894074,4.99297905,2002.9,2002.5,0.00856512]
[1746716894245,17.6961,2003.1,2002.5,0.00856512]
[1746716894443,11.77545809,2003.1,2002.7,0.00856512]
[1746716894645,4.99300978,2002.8,2002.7,0.00856512]
[1746716895168,4.99300978,2002.8,2002.5,0.00856512]
[1746716895383,4.99350843,2002.6,2002.5,0.00856512]
[1746716896269,4.99391542,2002.5,2002.3,0.00856512]
[1746716896470,4.99400719,2002.4,2002.3,0.00856512]
[1746716897559,4.99387619,2002.5,2002.3,0.00856512]
[1746716898068,15.11365749,2002.6,2002.3,0.00856512]
[1746716898270,15.1135152,2002.6,2002.3,0.59597653]
[1746716898471,4.99394692,2002.5,2002.2,0.00856512]
[1746716898652,4.99417281,2002.4,2002.2,0.00856512]
[1746716898846,4.9942566,2002.3,2002.2,0.00856512]
[1746716899048,4.9947555,2002.1,2002.0,0.00856512]
[1746716899454,11.74566914,2002.2,2002.0,0.00856512]
[1746716899660,4.9947555,2002.1,2002.0,0.00856512]
[1746716900879,11.74551229,2002.2,2001.9,0.00856512]
[1746716901081,4.99500499,2002.0,2001.9,0.00856512]
[1746716901244,4.99541637,2001.9,2001.7,0.00856512]
[1746716901586,4.99550381,2001.9,2001.7,0.00856512]
[1746716901759,4.99514606,2002.0,2001.7,0.00856512]
[1746716902265,15.11486434,2002.1,2001.7,0.00856512]
[1746716902583,15.11484712,2002.1,2001.7,5.00430345]
[1746716902755,15.11484712,2002.1,2001.7,6.06756441]
[1746716902951,4.99507205,2002.0,2001.7,1.07182608]
[1746716903483,4.99515124,2002.0,2001.7,1.07182608]
[1746716903843,15.11475781,2002.1,2001.7,6.06741438]
[1746716904045,15.11475781,2002.1,2001.7,11.06298589]
[1746716904268,10.12,2002.1,2001.9,0.7833]
[1746716904546,10.12,2002.1,2002.0,0.00856512]
[1746716904943,6.751,2002.2,2002.0,0.00856512]
[1746716905359,11.74560698,2002.2,2002.0,0.00856512]
[1746716905583,6.751,2002.2,2002.0,0.00856512]
[1746716905885,6.751,2002.2,2002.0,6.19241163]
[1746716906086,6.751,2002.2,2002.0,1.19743447]
[1746716906270,11.74567161,2002.2,2002.0,0.00856512]
[1746716906471,4.9947555,2002.1,2002.0,0.00856512]
[1746716907886,4.99542986,2001.9,2001.7,0.00856512]
[1746716908275,4.9954138,2001.9,2001.7,0.00856512]
[1746716908460,3.34999586,2003.1,2002.2,0.8161]
[1746716908812,3.34999586,2003.1,2002.4,4.99385191]
[1746716908813,8.34241675,2003.1,2002.4,4.99385191]
[1746716909094,13.33489141,2003.1,2002.4,4.99385191]
[1746716909270,8.34241675,2003.1,2002.5,4.99374403]
[1746716909661,15.09341675,2003.1,2002.5,4.99374403]
[1746716909864,15.09341675,2003.1,2002.5,5.99251589]
[1746716910200,15.09335769,2003.1,2002.4,5.04372796]
[1746716910371,8.34235769,2003.1,2002.5,4.99367331]
[1746716910696,4.99252753,2003.0,2002.5,4.99367331]
[1746716911013,4.99293885,2002.9,2002.3,4.99419355]
[1746716911188,0.8137,2002.9,2002.3,0.00856512]
[1746716911369,0.8137,2002.9,2002.0,0.00856512]
[1746716911370,4.99378423,2002.5,2002.0,0.00856512]
[1746716911570,4.9943681,2002.3,2001.8,0.00856512]
[1746716911771,4.99447355,2002.3,2001.8,0.00856512]
[1746716911972,5.80771614,2002.4,2001.9,4.99522166]
[1746716912176,5.80771614,2002.4,2001.8,5.00395887]
[1746716912401,0.8137,2002.4,2001.8,0.00856512]
[1746716912589,4.99442365,2002.3,2001.8,0.00856512]
[1746716913098,0.8137,2002.4,2001.9,4.99519646]
[1746716913301,7.99389794,2002.5,2001.9,4.99519646]
[1746716913302,6.751,2002.5,2002.1,0.00856512]
[1746716913485,11.74478794,2002.5,2002.1,0.00856512]
[1746716913867,11.74491338,2002.5,2002.1,0.00856512]
[1746716914168,6.751,2002.5,2002.1,0.00856512]
[1746716915087,11.74491469,2002.5,2002.1,0.00856512]
[1746716915264,6.751,2002.5,2002.1,0.00856512]
[1746716915465,4.99405879,2002.4,2002.1,0.00856512]
[1746716915689,6.751,2002.5,2001.8,5.00397341]
[1746716915873,4.99418629,2002.4,2001.8,6.1450917]
[1746716916080,4.99418629,2002.4,2001.9,4.99516705]
[1746716916400,11.74485406,2002.5,2001.9,4.99505036]
[1746716916568,6.751,2002.5,2002.0,5.00348248]
[1746716916763,11.74477542,2002.5,2002.0,5.00348248]
[1746716916965,16.871,2002.5,2002.0,6.11739929]
[1746716917172,21.8649273,2002.5,2002.0,1.12255938]
[1746716917500,16.871,2002.5,2002.0,6.11746328]
[1746716917931,21.86490227,2002.5,2002.0,0.00856512]
[1746716918113,21.86490227,2002.5,2002.0,5.00341219]
[1746716918114,16.871,2002.5,2002.0,5.00341219]
[1746716918683,16.871,2002.5,2002.1,4.99463836]
[1746716918873,16.871,2002.5,2002.2,0.75986512]
[1746716919386,16.871,2002.5,2002.2,5.7542912]
[1746716919581,6.751,2002.5,2002.4,0.00856512]
[1746716919881,10.12,2003.2,2003.0,4.99250113]
[1746716920101,4.99201277,2003.2,2003.1,0.00856512]
[1746716920299,15.11105265,2003.6,2003.1,0.00856512]
[1746716920476,4.99136861,2003.5,2003.1,0.00856512]
[1746716920678,4.99152991,2003.4,2003.1,0.00856512]
[1746716921011,4.99136861,2003.5,2003.1,0.00856512]
[1746716921012,16.871,2003.6,2003.1,0.00856512]
[1746716921173,21.86205837,2003.6,2002.9,0.00856512]
[1746716921374,4.99185466,2003.3,2002.9,0.00856512]
[1746716921575,4.99142875,2003.5,2002.9,5.0012046]
[1746716921784,4.99168374,2003.4,2002.9,0.00856512]
[1746716921986,4.99251123,2003.0,2002.9,0.00856512]
[1746716922325,4.99237236,2003.1,2002.9,0.00856512]
[1746716922483,11.74226934,2003.1,2002.9,0.00856512]
[1746716923221,4.99251123,2003.0,2002.9,0.00856512]
[1746716923394,4.99251123,2003.0,2002.6,0.00856512]
[1746716923594,6.75,2003.1,2002.6,0.62624215]
[1746716923907,6.75,2003.1,2002.6,0.00856512]
[1746716924111,11.74235735,2003.1,2002.6,5.00187593]
[1746716924623,4.99252208,2003.0,2002.6,0.00856512]
[1746716924920,4.99252208,2003.0,2002.6,5.00205875]
[1746716925132,4.9928548,2002.9,2002.6,0.00856512]
[1746716925323,5.77783181,2003.0,2002.6,0.00856512]
[1746716925324,5.77792901,2003.0,2002.6,0.00856512]
[1746716925479,4.99279654,2002.9,2002.6,0.00856512]
[1746716925681,0.7853,2003.0,2002.6,0.00856512]
[1746716925917,11.74242306,2003.1,2002.6,5.00193521]
[1746716926103,4.99259827,2003.0,2002.6,5.00193521]
[1746716926307,4.99285403,2002.9,2002.6,0.00856512]
[1746716926686,4.99265488,2003.0,2002.6,0.00856512]
[1746716927023,11.74248839,2003.1,2002.6,5.00206226]
[1746716927222,9.52364145,2003.4,2002.9,4.99276049]
[1746716927223,10.12,2003.4,2002.9,4.99276049]
[1746716927384,4.99276049,2002.9,2002.8,0.00856512]
[1746716927588,4.99267712,2003.0,2002.8,0.00856512]
[1746716927787,4.99238818,2003.1,2002.8,0.00856512]
[1746716928121,4.99269542,2003.0,2002.8,0.00856512]
[1746716928282,5.76450906,2003.3,2002.8,0.00856512]
[1746716928283,4.99238132,2003.1,2002.8,0.00856512]
[1746716928622,4.9920687,2003.2,2002.5,0.00856512]
[1746716928623,4.99292906,2002.9,2002.5,0.00856512]
[1746716928809,4.99289538,2002.9,2002.5,5.00229178]
[1746716929122,4.99285574,2002.9,2002.5,5.00223114]
[1746716929333,11.71063024,2003.0,2002.7,0.00856512]
[1746716929334,11.71054408,2003.0,2002.7,0.00856512]
[1746716929536,6.718,2003.0,2002.7,0.00856512]
[1746716930114,6.718,2003.0,2002.7,5.00174491]
[1746716930455,6.718,2003.0,2002.7,0.00856512]
[1746716930729,11.71063928,2003.0,2002.7,0.00856512]
[1746716931134,4.99263928,2003.0,2002.7,0.00856512]
[1746716931301,21.82942984,2003.1,2002.7,0.00856512]
[1746716931500,4.99252421,2003.0,2002.7,0.00856512]
[1746716931897,4.99252421,2003.0,2002.5,0.00856512]
[1746716931898,4.99310067,2002.8,2002.5,0.00856512]
[1746716932113,4.99344334,2002.7,2002.5,0.00856512]
[1746716932536,5.75774033,2003.0,2002.5,0.00856512]
[1746716932836,4.99337499,2002.7,2002.5,0.00856512]
[1746716933037,4.99325198,2002.8,2002.5,0.00856512]
[1746716933236,9.98649641,2002.8,2002.5,0.00856512]
[1746716933436,0.7652,2003.0,2002.5,5.00231417]
[1746716933437,4.99292601,2002.9,2002.5,5.00231417]
[1746716933741,4.99286671,2002.9,2002.5,5.58446532]
[1746716933941,4.99287731,2002.9,2002.5,5.58446532]
[1746716934117,4.99266577,2003.0,2002.6,4.9934859]
[1746716934315,4.99266577,2003.0,2002.7,0.00856512]
[1746716934739,4.99190719,2003.3,2002.8,10.81442948]
[1746716935037,4.99190213,2003.3,2002.9,4.99271948]
[1746716935222,9.98388766,2003.3,2002.9,4.99271948]
[1746716935397,4.99195903,2003.3,2002.9,4.99271948]
[1746716936024,4.9920791,2003.2,2002.8,5.8214357]
[1746716936539,4.9920791,2003.2,2002.8,10.81425941]
[1746716936758,4.9920791,2003.2,2002.8,5.82142371]
[1746716936965,4.99228738,2003.1,2002.9,0.00856512]
[1746716937130,4.9926387,2003.0,2002.9,0.00856512]
[1746716937331,4.99176359,2003.3,2002.9,0.00856512]
[1746716937548,4.99206255,2003.2,2002.9,0.00856512]
[1746716937763,26.14222325,2003.5,2002.9,0.00856512]
[1746716937926,4.99239425,2003.1,2002.9,0.00856512]
[1746716939270,9.98487346,2003.1,2002.9,0.00856512]
[1746716939558,4.99240573,2003.1,2002.9,0.00856512]
[1746716939764,4.99251123,2003.0,2002.9,0.00856512]
[1746716940065,0.7936,2002.7,2002.1,0.00856512]
[1746716940252,4.99477689,2002.1,2001.9,0.00856512]
[1746716940480,4.99490593,2002.1,2001.9,0.00856512]
[1746716940621,4.99490593,2002.1,2001.8,0.7922]
[1746716940622,4.99490593,2002.1,2002.0,3.25074385]
[1746716942566,23.22455941,2002.1,2002.0,3.25074385]
[1746716942774,18.91160593,2002.1,2002.0,3.25074385]
[1746716944481,18.91160593,2002.1,2002.0,0.00856512]
[1746716944771,18.91160593,2002.1,2001.4,5.84423816]
[1746716944772,4.99510609,2002.0,2001.8,0.00856512]
[1746716944948,15.11489213,2002.1,2001.8,0.00856512]
[1746716945353,15.11489213,2002.1,2001.8,5.00400843]
[1746716945354,10.12,2002.1,2001.8,5.00400843]
[1746716945555,15.11476135,2002.1,2001.8,1.01353283]
[1746716945757,4.99501459,2002.0,2001.8,1.01353283]
[1746716946076,4.99501459,2002.0,2001.8,0.00856512]
[1746716946250,15.11487397,2002.1,2001.8,0.00856512]
[1746716946449,10.12,2002.1,2001.8,0.00856512]
[1746716946836,4.99429969,2002.3,2001.8,5.87059746]
[1746716947042,21.83111108,2002.4,2002.0,5.00352957]
[1746716947375,16.837,2002.4,2002.2,0.7619]
[1746716947539,21.83113228,2002.4,2002.2,0.7619]
[1746716947740,16.837,2002.4,2002.2,0.7619]
[1746716948075,4.99446672,2002.3,2002.0,0.00856512]
[1746716948242,16.837,2002.4,2002.0,5.00337402]
[1746716948443,10.12,2002.4,2002.3,0.826]
[1746716948646,10.12,2002.4,2002.3,0.83456512]
[1746716949141,4.99366235,2002.6,2002.3,0.83456512]
[1746716949142,4.99353954,2002.6,2002.3,0.83456512]
[1746716949472,4.99391438,2002.5,2002.3,0.00856512]
[1746716949776,4.99400719,2002.4,2001.8,0.83456512]
[1746716950074,4.99459105,2002.2,2001.8,5.83006189]
[1746716950379,4.99436904,2002.3,2001.9,6.07776213]
[1746716950543,4.99459212,2002.2,2001.9,1.08256061]
[1746716951276,4.99476296,2002.1,2001.9,1.08256061]
[1746716951575,4.99438708,2002.3,2001.9,1.08256061]
[1746716951576,4.99465384,2002.2,2001.9,1.08256061]
[1746716951773,4.9942084,2002.4,2002.0,4.99499002]
[1746716951979,6.719,2002.7,2002.4,0.00856512]
[1746716952177,11.71226867,2002.7,2002.4,0.00856512]
[1746716952481,11.71246772,2002.7,2002.4,0.00856512]
[1746716952633,4.99362664,2002.6,2002.4,0.00856512]
[1746716953445,4.99362664,2002.6,2002.2,5.76241848]
[1746716953446,4.99362664,2002.6,2002.3,0.00856512]
[1746716953642,11.71236522,2002.7,2002.3,0.00856512]
[1746716953844,6.719,2002.7,2002.3,0.00856512]
[1746716954038,10.12,2002.8,2002.7,0.00856512]
[1746716955575,6.719,2003.1,2002.9,4.9925948]
[1746716955782,6.719,2003.1,2002.8,4.99276132]
[1746716955945,4.9918939,2003.3,2002.9,4.99273066]
[1746716956146,4.9918939,2003.3,2002.8,4.99286511]
[1746716956345,4.99201526,2003.2,2002.9,0.99945721]
[1746716956638,9.30521547,2003.1,2003.0,0.00856512]
[1746716956958,4.99226199,2003.1,2003.0,0.00856512]
[1746716957940,6.718,2003.1,2002.7,0.00856512]